[Event "1st Serbian League 2022"]
[Site "Vrnjacka Banja"]
[Date "2022.09.21"]
[Round "2.27"]
[White "Arsovic, Goran"]
[Black "Nenezic, Marko"]
[Result "1/2-1/2"]
[ECO "E62"]
[WhiteElo "2362"]
[BlackElo "2528"]
[Annotator "TA"]
[PlyCount "118"]
[EventDate "2022.09.20"]
[EventType "team-tourn"]
[EventCountry "SRB"]
[SourceTitle "playchess.com"]
[Source "ChessBase"]
[SourceQuality "1"]
[TimeControl "40/5400+30:1800+30"]

{[%evp 18,118,21,14,14,11,7,0,0,0,12,4,23,27,8,16,20,-13,-3,0,0,0,0,0,0,0,0,0,0,0,0,0,0,0,0,0,0,0,10,6,6,0,0,0,0,-10,0,0,0,0,0,0,0,0,0,-4,0,-18,-10,-18,-18,-18,-18,-26,-26,-26,-19,-26,-27,-26,-25,-30,-33,-37,-13,-13,-5,-5,-3,-4,0,0,46,26,26,3,7,8,31,31,42,56,106,105,126,122,110,71,88,56,31,0,89]} 1. d4 {[%emt 0:00:25]} Nf6 {[%emt 0:00:23]} 2. Nf3 {[%emt 0:00:16]} g6 {[%emt 0:00:32]} 3. c4 {[%emt 0:00:23]} Bg7 {[%emt 0:00:16]} 4. g3 {[%emt 0:00:17]} O-O {[%emt 0:00:35]} 5. Bg2 {[%emt 0:00:22]} d6 {[%emt 0:00:24]} 6. Nc3 {[%emt 0:00:41]} c6 {[%emt 0:00:35]} 7. O-O {[%emt 0:02:08]} Bf5 {[%emt 0:00:38]} 8. Re1 {[%emt 0:05:13]} Ne4 {[%emt 0:02:32]} 9. Qb3 {[%emt 0:00:48] 9.Qb3 scores better than 9.Nxe4.} Nxc3 {[%emt 0:02:06]} 10. bxc3 {[%emt 0:00:48]} Bc8 {[%emt 0:02:25] E62: King's Indian: Fianchetto: 6...c6 and Panno Variation (6...Nc6) without ...a6.} 11. e4 {[%emt 0:03:56]} Nd7 {[%emt 0:06:21]} 12. e5 {[%emt 0:05:24]} dxe5 {[%emt 0:12:58]} 13. Ba3 {[%emt 0:03:31][%cal Rd4e5]} Re8 {[%emt 0:02:02] [#]} 14. dxe5 $146 {[%emt 0:08:15]} ({Predecessor:} 14. Rad1 Qa5 15. c5 Qc7 16. Ng5 Rf8 17. Bh3 Nf6 18. dxe5 Ng4 19. e6 Nh6 20. exf7+ {1-0 (45) Greenfeld,A (2535)-Gil Quilez,S (2101) Oeiras 2015}) 14... Nf8 {[%emt 0:03:04]} 15. Nd4 {[%emt 0:06:22]} Qc7 {[%emt 0:13:36]} 16. f4 {[%emt 0:02:50]} Bd7 {[%emt 0:00:32]} 17. Rad1 {[%emt 0:13:55]} c5 {[%emt 0:12:28]} 18. Nc2 {[%emt 0:04:31]} ({Avoid the trap} 18. Bxb7 $2 Rab8 19. Nb5 (19. e6 $2 Bxd4+ 20. cxd4 Nxe6 $19) 19... Qxb7 $19) 18... Rab8 {[%emt 0:00:35]} 19. Ne3 {[%emt 0:03:25]} Qa5 {[%emt 0:03:15]} 20. Rd5 {[%emt 0:12:52]} ({Don't blunder} 20. Bxb7 $2 Ba4 21. Qb2 Bxd1 22. Rxd1 e6 $19) 20... b6 {[%emt 0:02:42]} 21. Bc1 {[%emt 0:10:18]} Ba4 {[%emt 0:04:45]} 22. Qa3 {[%emt 0:01:03]} e6 {[%emt 0:01:09]} 23. Rd2 {[%emt 0:01:33]} Red8 {[%emt 0:05:19]} 24. Ree2 {[%emt 0:00:25]} h5 {[%emt 0:00:43]} 25. Rxd8 {[%emt 0:00:46]} Rxd8 {[%emt 0:00:01]} 26. Rd2 {[%emt 0:00:06]} Rxd2 {[%emt 0:05:23]} 27. Bxd2 {[%emt 0:00:01]} f6 {[%emt 0:02:50]} 28. exf6 {[%emt 0:00:07]} Bxf6 {[%emt 0:00:04]} 29. Be4 {[%emt 0:02:06]} Kf7 {[%emt 0:00:33]} 30. Kf2 {[%emt 0:00:46]} Nd7 {[%emt 0:01:12]} 31. Bc2 {[%emt 0:01:00]} Bc6 {[%emt 0:01:32]} 32. Qxa5 {[%emt 0:00:27]} bxa5 {[%emt 0:00:01]} 33. Nd1 {[%emt 0:01:48]} Be7 {[%emt 0:03:29]} 34. Ke3 {[%emt 0:05:05]} Nb6 {[%emt 0:08:07]} 35. Nb2 {[%emt 0:02:21]} Bg2 {[%emt 0:00:31]} 36. Be4 {[%emt 0:01:11]} Bh3 {[%emt 0:00:07]} 37. Bd3 {[%emt 0:01:00]} Bd6 {[%emt 0:01:41]} 38. Nd1 {[%emt 0:01:21]} e5 {[%emt 0:01:03]} 39. fxe5 {[%emt 0:01:01]} Bxe5 {[%emt 0:00:02]} 40. Be2 {[%emt 0:01:05]} Bf5 {[%emt 0:02:11]} 41. Nb2 {[%emt 0:03:16]} Ke6 {[%emt 0:04:41]} 42. Bf3 {[%emt 0:02:04]} Bb1 {[%emt 0:02:43]} 43. a3 {[%emt 0:01:01]} Kf5 {[%emt 0:00:26]} 44. Be2 {[%emt 0:04:42]} Bd6 {[%emt 0:03:21]} 45. Be1 {[%emt 0:03:01]} Bf8 {[%emt 0:03:55]} 46. Kd2 $1 {[%emt 0:05:13]} Bh6+ {[%emt 0:04:59]} 47. Kd1 {[%emt 0:00:04]} Be3 {[%emt 0:00:43]} 48. Bd2 {[%emt 0:02:47]} Bg1 {[%emt 0:04:29]} 49. h3 {[%emt 0:00:38]} Kf6 {[%emt 0:00:55]} (49... Bh2 $11) 50. Bf4 {[%emt 0:02:29]} Kf5 {[%emt 0:03:15]} 51. Bb8 {[%emt 0:04:34]} Be4 {[%emt 0:02:41]} 52. Kd2 {[%emt 0:01:52]} Kf6 {[%emt 0:03:34]} (52... Nd7 $5 {[%cal Rd7b8]} 53. g4+ Kf6 $11) 53. Bc7 {[%emt 0:01:24]} Bg2 {[%emt 0:01:11]} 54. h4 {[%emt 0:01:41]} Be4 {[%emt 0:00:11] [#]} (54... Kf5 $14) 55. Bf4 $1 $16 {[%emt 0:00:31] Black must now prevent Ke1.} Kf5 {[%emt 0:00:41]} 56. Ke1 {[%emt 0:00:54] Strongly threatening Kf1.} Bg2 {[%emt 0:00:35]} 57. Bf1 {[%emt 0:00:59]} Bf3 {[%emt 0:00:25]} 58. Bd3+ {[%emt 0:00:43]} Be4 {[%emt 0:00:24] [#] aiming for ...Bxd3.} 59. Be2 {[%emt 0:00:40]} ({White should try} 59. Ke2 $14) 59... Bg2 $1 {[%emt 0:00:08] Weighted Error Value: White=0.05 (flawless) /Black=0.05 (flawless)} 1/2-1/2

[Event "1st Serbian League 2022"]
[Site "Vrnjacka Banja"]
[Date "2022.09.21"]
[Round "2.28"]
[White "Djukic, Nikola"]
[Black "Rajkovic, Dusan"]
[Result "1/2-1/2"]
[ECO "B36"]
[WhiteElo "2536"]
[BlackElo "2246"]
[Annotator "TA"]
[PlyCount "116"]
[EventDate "2022.09.20"]
[EventType "team-tourn"]
[EventCountry "SRB"]
[SourceTitle "playchess.com"]
[Source "ChessBase"]
[SourceQuality "1"]
[TimeControl "40/5400+30:1800+30"]

{[%evp 18,116,34,33,56,60,86,51,58,50,58,52,60,54,60,50,55,50,52,50,71,70,70,70,70,70,74,79,90,81,91,98,95,98,95,94,94,94,94,91,113,89,98,107,136,93,89,89,101,106,94,100,130,83,105,83,85,56,94,85,85,72,78,69,104,56,70,51,58,55,65,62,69,29,47,45,48,33,49,10,9,17,40,0,0,0,0,-6,-2,-8,-6,-3,-8,-1,-9,-20,-17,-27,-24,-35,-6]} 1. e4 {[%emt 0:00:05]} c5 {[%emt 0:00:43]} 2. Nf3 {[%emt 0:00:05]} Nc6 {[%emt 0:00:32]} 3. d4 {[%emt 0:00:07]} cxd4 {[%emt 0:00:15]} 4. Nxd4 {[%emt 0:00:07]} g6 {[%emt 0:01:04]} 5. c4 {[%emt 0:00:20]} Nf6 {[%emt 0:05:00]} 6. Nc3 {[%emt 0:00:21]} d6 {[%emt 0:00:18]} 7. f3 {[%emt 0:01:30]} Nxd4 {[%emt 0:01:02]} 8. Qxd4 {[%emt 0:00:07]} Bg7 {[%emt 0:00:02]} 9. Be3 {[%emt 0:00:30]} O-O {[%emt 0:00:11]} 10. Qd2 {[%emt 0:00:31]} a5 {[%emt 0:02:27] B36: Sicilian: Maroczy Bind: Gurgenidze System.} 11. b3 {[%emt 0:08:24]} Nd7 {[%emt 0:06:52][%cal Oa5a4]} 12. Rc1 {[%emt 0:03:56]} Nc5 {[%emt 0:01:39] White is slightly better.} 13. Be2 {[%emt 0:05:13]} b6 {[%emt 0:03:52]} 14. O-O {[%emt 0:10:52]} Bb7 {[%emt 0:02:13]} 15. Rfd1 {[%emt 0:14:44]} Bc6 {[%emt 0:01:26]} 16. Bf1 {[%emt 0:05:48]} Be5 {[%emt 0:03:18] [#]} 17. Ne2 $146 {[%emt 0:04:05]} ({Predecessor:} 17. Bf4 Qb8 18. Nd5 Qb7 19. Bxe5 dxe5 20. Rb1 Kg7 21. a3 e6 22. Ne3 {½-½ (31) Walden,J (2000)-Ruzin,M (1786) FICGS email 2009}) 17... Qc7 {[%emt 0:06:08]} 18. Nd4 {[%emt 0:00:36]} Rfd8 {[%emt 0:03:34]} 19. Nxc6 {[%emt 0:03:22]} Qxc6 {[%emt 0:00:11]} 20. g3 {[%emt 0:00:31]} Rab8 {[%emt 0:05:59]} 21. Bg2 {[%emt 0:01:02]} Bg7 {[%emt 0:00:38]} 22. Qc2 {[%emt 0:05:54]} e5 {[%emt 0:08:27]} 23. Bh3 {[%emt 0:11:47]} h6 {[%emt 0:04:39]} 24. Rd5 {[%emt 0:02:06]} Kh7 {[%emt 0:02:04]} 25. Qd2 {[%emt 0:02:20]} Qc7 {[%emt 0:01:11]} 26. Rd1 {[%emt 0:01:44][%cal Rd5d6]} Bf8 {[%emt 0:00:32]} 27. Bg2 {[%emt 0:05:00]} Re8 {[%emt 0:02:02]} 28. Qc2 {[%emt 0:05:17]} Na6 {[%emt 0:09:32]} 29. Qe2 {[%emt 0:03:24]} Nb4 {[%emt 0:05:48]} 30. Rb5 {[%emt 0:01:54]} Na6 {[%emt 0:00:08]} 31. Qf2 {[%emt 0:00:57][%cal Re3b6]} Nc5 {[%emt 0:00:13]} 32. a3 {[%emt 0:00:10]} Be7 {[%emt 0:09:04]} 33. b4 {[%emt 0:00:48]} axb4 {[%emt 0:00:39]} 34. axb4 {[%emt 0:00:04]} Nd7 {[%emt 0:01:03]} 35. Bf1 {[%emt 0:01:43]} (35. Bh3 $142) 35... Rb7 {[%emt 0:03:24]} 36. Ra1 {[%emt 0:01:45]} Reb8 {[%emt 0:00:42]} 37. Ra6 {[%emt 0:00:39]} Bd8 {[%emt 0:00:22]} 38. Qd2 {[%emt 0:00:44]} h5 {[%emt 0:00:30]} 39. Rd5 {[%emt 0:01:28] White has more active pieces. The black rooks are badly placed.} Be7 {[%emt 0:00:09]} 40. Qa2 {[%emt 0:00:00]} Kg7 {[%emt 0:03:48] [#]} 41. Rd1 {[%emt 0:07:01]} ({Better is} 41. h4 $1 $16) 41... Rd8 {[%emt 0:04:41]} 42. Qf2 {[%emt 0:03:07]} d5 {[%emt 0:08:16]} 43. cxd5 {[%emt 0:00:18] Strongly threatening Rc1.} Bxb4 {[%emt 0:00:08]} 44. Bb5 {[%emt 0:01:56]} Bc5 {[%emt 0:06:03]} 45. Bxd7 {[%emt 0:07:13]} Bxe3 {[%emt 0:00:35]} 46. Qxe3 {[%emt 0:00:07]} Rxd7 {[%emt 0:00:16]} 47. Rc1 {[%emt 0:02:47]} Qb8 {[%emt 0:01:11]} 48. Rc6 {[%emt 0:02:46]} (48. Kg2 $5 {[%cal Rc1c6]}) 48... b5 $1 {[%emt 0:01:46][%cal Bb6b5,Bb5b4,Bb4b3][%mdl 32]} 49. Qc5 {[%emt 0:04:42] [#] aiming for Rc8.} Qf8 {[%emt 0:02:07]} 50. Qc3 {[%emt 0:00:29]} (50. d6 $5 {[%cal Rc6c8]}) 50... Qe7 {[%emt 0:00:36]} 51. f4 {[%emt 0:01:29]} b4 {[%emt 0:00:20]} 52. Qxe5+ {[%emt 0:01:00]} Qxe5 {[%emt 0:00:21]} 53. fxe5 $11 {[%emt 0:00:06][%mdl 4096] Endgame KRR-KRR} b3 {[%emt 0:00:11] Threatens to win with ...b2.} 54. Ra1 {[%emt 0:00:19]} Re7 {[%emt 0:00:10]} 55. e6 {[%emt 0:01:08]} fxe6 {[%emt 0:04:39]} 56. d6 {[%emt 0:00:11]} Red7 {[%emt 0:00:19]} 57. e5 {[%emt 0:02:17]} Rb5 {[%emt 0:00:11]} 58. Rb1 {[%emt 0:00:35]} Rxe5 {[%emt 0:01:57] Weighted Error Value: White=0.10 (very precise) /Black=0.06 (flawless)} 1/2-1/2

[Event "1st Serbian League 2022"]
[Site "Vrnjacka Banja"]
[Date "2022.09.21"]
[Round "2.29"]
[White "Rajkovic, Mladen"]
[Black "Strikovic, Aleksa"]
[Result "1/2-1/2"]
[ECO "C54"]
[WhiteElo "2335"]
[BlackElo "2491"]
[Annotator "TA"]
[PlyCount "132"]
[EventDate "2022.09.20"]
[EventType "team-tourn"]
[EventCountry "SRB"]
[SourceTitle "playchess.com"]
[Source "ChessBase"]
[SourceQuality "1"]
[TimeControl "40/5400+30:1800+30"]

{[%evp 12,132,20,6,9,2,33,13,37,22,23,30,25,29,43,0,0,0,7,-13,-12,-24,-23,-33,-34,-37,0,0,0,-10,0,-17,-22,-28,-29,-29,-17,-33,0,6,70,38,92,85,63,100,89,2,0,0,95,104,160,157,154,82,94,10,92,64,62,45,45,45,45,45,45,45,45,45,45,45,45,45,45,45,45,45,45,45,45,45,45,45,45,45,45,45,45,0,45,45,45,0,0,0,0,0,0,0,0,0,0,0,0,0,0,0,0,0,0,0,0,0,0,0,0,0,0,0,0,0,0]} 1. e4 {[%emt 0:02:12]} e5 {[%emt 0:00:06]} 2. Nf3 {[%emt 0:00:06]} Nc6 {[%emt 0:00:05]} 3. Bc4 {[%emt 0:04:18]} Bc5 {[%emt 0:00:17]} 4. O-O {[%emt 0:00:55]} Nf6 {[%emt 0:00:16]} 5. d3 {[%emt 0:00:05]} d6 {[%emt 0:00:07]} 6. c3 {[%emt 0:00:14]} O-O {[%emt 0:01:07]} 7. Bb3 {[%emt 0:00:06] 7.Bb3 was played by the boomers.} a5 {[%emt 0:01:07] C54: Giuoco Piano: 4 c3 Nf6, main lines with 5 d4 and 5 d3.} 8. Re1 {[%emt 0:01:11]} Ba7 {[%emt 0:04:17]} 9. h3 {[%emt 0:00:23]} Ne7 {[%emt 0:00:26]} 10. Nbd2 {[%emt 0:01:32]} Ng6 {[%emt 0:00:23][%cal Oa5a4]} 11. Nf1 {[%emt 0:02:13]} Be6 {[%emt 0:12:41]} 12. Ng3 {[%emt 0:01:22]} Re8 {[%emt 0:03:01] [#]} 13. Ng5 $146 {[%emt 0:04:36]} ({Predecessor:} 13. Ba4 Bd7 14. Bc2 d5 15. Bg5 h6 16. Bxf6 Qxf6 17. exd5 Nf4 18. d4 exd4 19. Rxe8+ Rxe8 20. Nxd4 Nxd5 {1-0 (53) Sjugirov,S (2696)-Gharibyan,M (2487) Chess.com INT 2022}) 13... Bxb3 {[%emt 0:02:45]} 14. Qxb3 {[%emt 0:00:08]} Qd7 {[%emt 1:10:52]} 15. Be3 {[%emt 0:02:33]} a4 {[%emt 0:00:00]} 16. Qc2 {[%emt 0:02:30]} (16. Qxb7 $2 Bxe3 17. fxe3 (17. Rxe3 $2 Reb8 $19) 17... Reb8 18. Qxa8 Rxa8 $19) 16... Bxe3 {[%emt 0:00:00]} 17. fxe3 {[%emt 0:05:49]} h6 {[%emt 0:00:00]} 18. Nf3 {[%emt 0:00:11]} d5 {[%emt 0:00:00]} 19. exd5 {[%emt 0:01:42]} Nxd5 {[%emt 0:00:00]} 20. Rad1 {[%emt 0:06:17]} c5 {[%emt 0:00:00]} 21. e4 {[%emt 0:09:44]} Ndf4 {[%emt 0:00:00]} 22. d4 {[%emt 0:00:59]} cxd4 {[%emt 0:00:00]} 23. cxd4 {[%emt 0:02:10]} exd4 {[%emt 0:00:00]} 24. Nxd4 {[%emt 0:01:53]} Ne5 {[%emt 0:00:00]} 25. Ngf5 {[%emt 0:09:05][%cal Of5g7]} g6 {[%emt 0:00:00]} (25... Kh7 $11) 26. Qd2 {[%emt 0:16:41]} (26. Nxh6+ Kh7 $11) 26... Ned3 {[%emt 0:00:00]} (26... Nxh3+ $1 $14 27. gxh3 gxf5) 27. Nxh6+ $16 {[%emt 0:02:01]} Kh7 {[%emt 0:01:40]} 28. Nf3 {[%emt 0:01:55][%cal Oh6f7]} Qc7 {[%emt 0:01:12] [#]} 29. Ng4 {[%emt 0:05:55]} (29. Nxf7 $1 $16 {[%cal Oe1e3] Hoping for Re3!} Nxe1 30. Rxe1) 29... Nxe1 $11 {[%emt 0:02:32]} 30. Rxe1 {[%emt 0:02:24] aiming for e5. Dancing on a razor blade.} (30. Ng5+ $2 Kg8 31. Kh1 (31. Nf6+ $2 Kg7 $19) 31... Red8 32. Qxe1 Qc2 $19) 30... Ra6 {[%emt 0:01:44]} (30... Red8 $11 {remains equal.} 31. Qe3 Ra5) 31. e5 $1 $16 {[%emt 0:01:21]} f5 {[%emt 0:00:46] [#]} (31... Nh5 $142) 32. Nf6+ $1 {[%emt 0:02:41]} ({Don't take} 32. Qxf4 fxg4 33. Qxg4 (33. hxg4 Kg8 $11) 33... Qe7 $16) 32... Rxf6 {[%emt 0:00:03] [#]} 33. exf6 {[%emt 0:00:01]} (33. Ng5+ $142 $1 Kg8 34. exf6 Rxe1+ 35. Qxe1) 33... Rxe1+ {[%emt 0:00:05]} 34. Nxe1 {[%emt 0:01:42][%mdl 4096] Endgame KQN-KQN} ({Better is} 34. Qxe1 $16 {Threatens to win with Qe7+.} Qb6+ 35. Kh2 Qxf6 36. Qb4) 34... g5 {[%emt 0:00:26]} (34... Qc5+ $11 {keeps the balance.} 35. Qf2 Qc1) 35. Nf3 {[%emt 0:01:55]} Kg6 {[%emt 0:00:03] [#]} 36. Nxg5 $1 {[%emt 0:01:46]} Kxg5 {[%emt 0:01:31]} 37. g3 {[%emt 0:00:02][%mdl 64] Pin} Kxf6 {[%emt 0:00:41]} 38. gxf4 $14 {[%emt 0:00:37] Black must now prevent Qc3+. KQ-KQ} Kg6 {[%emt 0:00:28]} 39. Qg2+ {[%emt 0:00:55]} Kh7 {[%emt 0:00:01]} 40. Qf2 {[%emt 0:01:59] And now Qh4+ would win.} Kg6 {[%emt 0:00:50]} 41. Kh2 {[%emt 0:32:51]} b5 {[%emt 0:04:28]} 42. Qg1+ {[%emt 0:00:00]} Kh7 {[%emt 0:01:27]} 43. Qd4 {[%emt 0:00:00]} Qe7 {[%emt 0:10:05]} 44. a3 {[%emt 0:00:00]} Qe2+ {[%emt 0:05:46]} 45. Kg3 {[%emt 0:00:00]} Qe1+ {[%emt 0:00:08]} 46. Qf2 {[%emt 0:00:00]} Qe6 {[%emt 0:01:56]} 47. Qf3 {[%emt 0:00:00]} Qe1+ {[%emt 0:01:13]} 48. Kg2 {[%emt 0:00:00]} Qd2+ {[%emt 0:00:11]} 49. Qf2 {[%emt 0:00:00]} Qd5+ {[%emt 0:00:17]} 50. Kg3 {[%emt 0:00:00]} Kg6 {[%emt 0:02:21]} 51. Qe2 {[%emt 0:00:00]} Qd7 {[%emt 0:01:04]} 52. h4 {[%emt 0:00:00]} Kh6 {[%emt 0:00:58] The position is equal.} 53. Kh3 {[%emt 0:00:00]} Qd5 {[%emt 0:01:39]} 54. Kh2 {[%emt 0:00:00]} Qc6 {[%emt 0:02:06]} 55. Qd3 {[%emt 0:00:00]} Qc1 {[%emt 0:02:27]} 56. Qd4 {[%emt 0:00:00]} Qc2+ {[%emt 0:00:20]} 57. Kg3 {[%emt 0:00:00] Qh8+ is the strong threat.} Qb3+ {[%emt 0:00:07]} 58. Kf2 {[%emt 0:00:00]} Qc2+ {[%emt 0:01:07]} 59. Ke3 {[%emt 0:00:00]} Qb3+ {[%emt 0:00:29]} 60. Kd2 {[%emt 0:00:00] Strongly threatening Qh8+.} Kh5 $1 {[%emt 0:00:29]} 61. Qh8+ {[%emt 0:03:47]} (61. Qf6 Qd5+ 62. Ke1 Qe4+ 63. Kd1 Qd3+ 64. Ke1 Qe3+ 65. Kd1 Qd3+ 66. Ke1 Qg3+ 67. Ke2 Qg2+ 68. Ke1 Qg3+ 69. Kf1 Qf3+ 70. Kg1 Qxf4) 61... Kg4 {[%emt 0:00:03]} 62. Qg7+ {[%emt 0:00:01]} Kxf4 {[%emt 0:00:40]} 63. Qg5+ {[%emt 0:00:01]} Ke4 {[%emt 0:00:09]} 64. Qg2+ {[%emt 0:00:39]} Kf4 {[%emt 0:01:21]} 65. Qg5+ {[%emt 0:01:09]} Ke4 {[%emt 0:00:06]} 66. Qg2+ {[%emt 0:00:37]} Kf4 {[%emt 0:03:01] Weighted Error Value: White=0.14 (very precise) /Black=0.12 (very precise)} 1/2-1/2

[Event "1st Serbian League 2022"]
[Site "Vrnjacka Banja"]
[Date "2022.09.21"]
[Round "2.30"]
[White "Perunovic, Miodrag"]
[Black "Todorovic, Jovan"]
[Result "1/2-1/2"]
[ECO "B62"]
[WhiteElo "2413"]
[BlackElo "2350"]
[Annotator "TA"]
[PlyCount "106"]
[EventDate "2022.09.20"]
[EventType "team-tourn"]
[EventCountry "SRB"]
[SourceTitle "playchess.com"]
[Source "ChessBase"]
[SourceQuality "1"]
[TimeControl "40/5400+30:1800+30"]

{[%evp 12,106,26,27,27,19,25,11,44,50,39,22,41,35,57,56,63,58,73,85,77,61,89,0,0,0,0,0,39,31,32,38,28,31,39,30,38,33,47,30,25,26,24,22,22,20,50,50,45,46,46,0,0,0,0,0,0,0,0,0,0,0,4,0,0,0,0,0,0,0,0,0,0,0,0,0,0,0,0,0,0,0,0,0,0,0,0,0,8,8,13,35,35,0,0,0,8]} 1. e4 {[%emt 0:00:06]} c5 {[%emt 0:00:22]} 2. Nf3 {[%emt 0:00:07]} d6 {[%emt 0:00:25]} 3. d4 {[%emt 0:00:08]} cxd4 {[%emt 0:00:16]} 4. Nxd4 {[%emt 0:00:04]} Nf6 {[%emt 0:00:15]} 5. Nc3 {[%emt 0:00:04]} Nc6 {[%emt 0:00:16]} 6. Bg5 {[%emt 0:00:11]} e6 {[%emt 0:02:32]} 7. Bb5 {[%emt 0:00:06]} Qb6 {[%emt 0:03:39] B62: Sicilian: Richter-Rauzer: 6...e6: Unusual White 7th moves.} 8. Be3 {[%emt 0:00:02] [#] Black must now prevent Nxc6.} Qc7 {[%emt 0:02:28]} 9. g4 {[%emt 0:00:01][%cal Bg2g4,Bg4g5][%mdl 32]} Be7 {[%emt 0:04:36]} 10. g5 {[%emt 0:02:55]} Nd7 {[%emt 0:00:45][%cal Bf6d7,Bd7c5,Bc5a4,Ba4b2][%mdl 32]} 11. h4 {[%emt 0:02:40]} a6 {[%emt 0:07:25]} 12. Be2 {[%emt 0:00:02]} b5 {[%emt 0:06:15]} 13. Nxc6 {[%emt 0:00:02]} Qxc6 {[%emt 0:00:19]} 14. Qd4 {[%emt 0:00:01]} e5 {[%emt 0:18:26]} 15. Qd2 {[%emt 0:00:29] [#] White is more active.} Nc5 $146 {[%emt 0:00:16]} ({Predecessor:} 15... Nb6 16. Bxb6 Qxb6 17. Nd5 Qc6 18. c4 bxc4 19. Rc1 Bd8 20. Bxc4 Qb7 21. h5 Be6 22. Ke2 Ra7 {1-0 (39) Illingworth,M (2458)-Saleh,A (1904) Sydney 2016}) 16. f3 {[%emt 0:03:25]} Be6 {[%emt 0:01:48]} 17. h5 {[%emt 0:00:49]} ({Better is} 17. O-O-O $16) 17... Na4 $1 $11 {[%emt 0:09:59]} 18. Nd5 {[%emt 0:26:53]} Nxb2 {[%emt 0:03:52]} 19. Rb1 {[%emt 0:00:27][%cal Ba1b1,Bb1b5,Bb5d5][%mdl 32] Hoping for Nb4.} Na4 {[%emt 0:17:07] [#]} 20. Rxb5 $1 {[%emt 0:04:13]} Bxd5 {[%emt 0:02:58]} 21. Qxd5 {[%emt 0:07:45]} Qxd5 {[%emt 0:00:21]} 22. Rxd5 {[%emt 0:00:01]} Nc3 {[%emt 0:00:52]} 23. Ra5 {[%emt 0:00:02]} Nxe2 {[%emt 0:01:17]} 24. Kxe2 {[%emt 0:00:01]} Kd7 {[%emt 0:00:33]} 25. Rb1 {[%emt 0:00:09]} Rhc8 {[%emt 0:01:06]} 26. Kd3 {[%emt 0:04:04]} Rc6 {[%emt 0:01:07]} 27. Rb7+ {[%emt 0:04:02]} Ke6 {[%emt 0:00:56]} 28. c4 {[%emt 0:00:08]} h6 {[%emt 0:05:12]} 29. gxh6 {[%emt 0:03:07]} gxh6 {[%emt 0:00:06]} 30. Ra4 {[%emt 0:00:23]} Bg5 {[%emt 0:01:59]} 31. Rab4 {[%emt 0:06:05]} (31. Ra7 $14 {is more appropriate.} Rxa7 32. Bxa7) 31... Bxe3 {[%emt 0:01:33]} 32. Kxe3 {[%emt 0:00:01][%mdl 4096] Endgame KRR-KRR} Rac8 {[%emt 0:00:12]} 33. Kd3 {[%emt 0:03:08]} a5 {[%emt 0:02:32]} 34. Ra4 {[%emt 0:01:55]} Ra8 {[%emt 0:00:11]} 35. Ra3 {[%emt 0:02:09]} Rac8 {[%emt 0:01:17]} 36. Ra4 {[%emt 0:03:36]} Ra8 {[%emt 0:00:14]} 37. Rb5 {[%emt 0:02:33]} Rc5 {[%emt 0:00:59]} 38. Rb6 {[%emt 0:00:05]} Ra7 {[%emt 0:01:11]} 39. Rb8 {[%emt 0:00:16]} Kf6 {[%emt 0:00:41]} 40. Ra3 {[%emt 0:04:47]} Rac7 {[%emt 0:01:17]} 41. Rc3 {[%emt 0:34:06]} Rc8 {[%emt 0:31:06]} 42. Rb1 {[%emt 0:00:10]} Rg8 {[%emt 0:00:00]} 43. Rb6 {[%emt 0:00:00]} Ke6 {[%emt 0:00:00]} 44. Ke3 {[%emt 0:00:00]} Rgc8 {[%emt 0:00:00]} 45. Kd3 {[%emt 0:00:00]} Rg8 {[%emt 0:00:00]} 46. Kc2 {[%emt 0:00:00]} Rg1 {[%emt 0:00:00]} 47. Ra6 {[%emt 0:00:00]} Rh1 {[%emt 0:00:00]} 48. Kb3 {[%emt 0:00:00]} Rb1+ {[%emt 0:00:00]} 49. Ka3 {[%emt 0:00:00]} Rb4 {[%emt 0:00:00]} 50. Rd3 {[%emt 0:00:00]} Rbxc4 {[%emt 0:00:00] And now ...Rd4 would win.} 51. Raxd6+ {[%emt 0:00:00]} Ke7 {[%emt 0:00:00]} 52. Kb2 {[%emt 0:02:58]} Rb4+ {[%emt 0:00:00]} 53. Ka3 {[%emt 0:00:02]} Rbc4 {[%emt 0:00:00] Weighted Error Value: White=0.06 (flawless) /Black=0.05 (flawless)} 1/2-1/2

[Event "1st Serbian League 2022"]
[Site "Vrnjacka Banja"]
[Date "2022.09.21"]
[Round "2.31"]
[White "Krstulovic, Alex"]
[Black "Ter-Sahakyan, Samvel"]
[Result "1/2-1/2"]
[ECO "D02"]
[WhiteElo "2411"]
[BlackElo "2630"]
[Annotator "TA"]
[PlyCount "46"]
[EventDate "2022.09.20"]
[EventType "team-tourn"]
[EventCountry "SRB"]
[SourceTitle "playchess.com"]
[Source "ChessBase"]
[SourceQuality "1"]
[TimeControl "40/5400+30:1800+30"]

{[%evp 9,31,7,12,9,10,8,11,18,22,9,12,16,25,17,31,31,31,31,39,35,37,40,37,35]} 1. d4 {[%emt 0:00:04]} Nf6 {[%emt 0:00:12]} 2. Nf3 {[%emt 0:00:08]} d5 {[%emt 0:00:04]} 3. Bf4 {[%emt 0:00:08]} Bf5 {[%emt 0:00:06]} 4. e3 {[%emt 0:00:28]} e6 {[%emt 0:00:06]} 5. c4 {[%emt 0:00:18]} Bxb1 {[%emt 0:00:15]} 6. Rxb1 {[%emt 0:01:02] D02: 1 d4 d5 2 Nf3 sidelines, including 2...Nf6 3 g3 and 2...Nf6 3 Bf4.} Bb4+ {[%emt 0:01:17]} 7. Ke2 {[%emt 0:00:10] c5 is the strong threat.} dxc4 {[%emt 0:14:32]} 8. Qa4+ $1 {[%emt 0:02:08] The position is equal.} Nc6 {[%emt 0:00:06]} 9. Ne5 {[%emt 0:04:25] Active counter play!} Nd5 {[%emt 0:01:22]} 10. Nxc6 {[%emt 0:12:33]} Qd7 {[%emt 0:00:15][%mdl 64] [#] Pin} 11. Rc1 $1 {[%emt 0:02:12][%cal Bb1c1,Bc1c4,Bc4c6][%mdl 32]} bxc6 {[%emt 0:08:34]} (11... c3 12. bxc3) 12. Rxc4 {[%emt 0:03:55] White is slightly better.} Rb8 {[%emt 0:00:10]} 13. Qxc6 {[%emt 0:01:40]} ({Much worse is} 13. Qxa7 O-O 14. Qa4 Bd6 $17) 13... Qxc6 {[%emt 0:00:50]} 14. Rxc6 {[%emt 0:00:05]} Nxf4+ {[%emt 0:00:09]} 15. exf4 {[%emt 0:00:06]} Ba5 {[%emt 0:00:08]} 16. b3 {[%emt 0:03:12] [#]  Weighted Error Value: White=0.00 (flawless) /Black=0.05 (flawless)} {Predecessor:} Ke7 $146 17. Ke3 Rhd8 18. Be2 Bb6 19. Rd1 a5 20. Ke4 g6 21. g4 Rd7 22. Bb5 Rd6 23. Rxd6 cxd6 {½-½ (31) Abasov,N (2656)-Sargsyan,S (2626) Krasnaya Polyana 2021} 1/2-1/2